Cogmind - Beta 15 @@@ ROGUE MODE // 2025.06.28 @ 21:58:12 Player: CaramelizedRodent Result: Destroyed by H-55 Commando with Gauss Rifle Performance ------------- Evolutions (3) 1500 Regions Visited (6) 1200 Robots Destroyed (57) 285 Value Destroyed (1818) 1818 Prototype IDs (1) 20 Alien Tech Used (0) 0 Bonus (14) 14 TOTAL SCORE: 4837 Bonus ------- Follower Combat Kills 14 Cogmind --------- Core Integrity 0/700 Matter 217/300 Energy 328/340 System Corruption 13% Temperature Cool (6) Movement Walking (180) Ox1 Location -7/Factory Parts ------- > --- POWER (2) -------- Reinforced Deuterium Engine Micro Nuclear Core > --- PROPULSION (3) --- VSS Leg VSS Leg VSS Leg > --- UTILITY (3) ------ Core Analyzer Core Analyzer Power Shielding > --- WEAPON (5) ------- Autogun Autogun Gauss Cannon Spear > --- INVENTORY (5) ---- Light Ion Engine Armored Huge Wheel Improved Airjet Cooled Airjet Peak State ------------ > --- POWER ------------ Light Deuterium Engine Micro Nuclear Core > --- PROPULSION ------- Xenon Bombardment Thruster Xenon Bombardment Thruster Xenon Bombardment Thruster > --- UTILITY ---------- Medium Storage Unit > --- WEAPON ----------- Heavy Laser Plasma Cannon Heavy Ion Cannon Flak Gun Flak Gun > --- INVENTORY -------- Wheel Improved Airjet Coolant Injector Core Analyzer Core Analyzer Matter Filter Improved Shield Generator Shock Bomb Launcher Proton Missile Launcher [Rating: 43] Favorites ----------- Power Ion Engine Engine Ion Engine Power Core Micro Nuclear Core Propulsion Wheel Treads Light Treads Leg VSS Leg Wheel Wheel Flight Unit Xenon Bombardment Thruster Utility Targeting Computer Device Shield Generator Storage Small Storage Unit Processor Targeting Computer Protection Hardened Medium Armor Plating Weapon Small Laser Energy Gun Small Laser Energy Cannon Plasma Cannon Ballistic Gun Assault Rifle Ballistic Cannon Light Cannon Launcher Rocket Launcher Impact Weapon Maul Slashing Weapon Katana Piercing Weapon Spear Build | -11 -10 -10 -9 -9 -8 -7 ------- Run | Yrd Mat Min Mat Min Mat Fac Slots Evolved 6 | . . . 2 . 2 2 Power 1 | . . . . . . 1 Propulsion 1 | . . . . . 1 . Utility 1 | . . . . . 1 . Weapon 3 | . . . 2 . . 1 Parts Attached 68 | 6 8 . 4 3 14 33 Power 9 | 1 2 . . . 1 5 Engine 4 | 1 1 . . . . 2 Core 5 | . 1 . . . 1 3 Reactor . | . . . . . . . Propulsion 19 | 2 2 . 1 1 4 9 Treads 2 | 2 . . . . . . Leg 7 | . . . . . 2 5 Wheel 7 | . 2 . 1 1 2 1 Hover . | . . . . . . . Flight 3 | . . . . . . 3 Utility 14 | 1 1 . 1 . 5 6 Device 6 | . . . 1 . 3 2 Storage 2 | 1 . . . . 1 . Processor 3 | . 1 . . . . 2 Hackware . | . . . . . . . Protection 3 | . . . . . 1 2 Artifact . | . . . . . . . Weapon 26 | 2 3 . 2 2 4 13 Energy Gun 3 | 1 . . . . 1 1 Energy Cannon 3 | . 1 . . . . 2 Ballistic Gun 11 | 1 1 . 1 2 1 5 Ballistic Cannon 2 | . 1 . . . . 1 Launcher 4 | . . . 1 . 1 2 Special Weapon . | . . . . . . . Impact Weapon 1 | . . . . . . 1 Slashing Weapon 1 | . . . . . 1 . Piercing Weapon 1 | . . . . . . 1 Special Melee Weapon . | . . . . . . . Unidentified Prototypes 1 | . . . . . 1 . Parts Lost 48 | . 4 . 1 2 20 21 Power 6 | . 1 . . . 2 3 Propulsion 14 | . 1 . 1 1 5 6 Utility 9 | . . . . . 5 4 Weapon 19 | . 2 . . 1 8 8 Highest Loss Streak 17 | . 3 . 1 1 10 17 To Critical Strikes . | . . . . . . . Average Backups 5 | 5 7 6 5 4 3 5 Power . | . . . . . . . Propulsion 1 | 3 2 1 1 . . 1 Utility 1 | . . 1 1 1 1 2 Weapon 2 | 1 3 4 3 2 1 . Tool/Special . | . . . . . . . Unused Backups 13 | . 4 . 3 . 1 5 Power 1 | . 1 . . . . . Propulsion 9 | . 3 . 3 . . 3 Utility 1 | . . . . . . 1 Weapon 1 | . . . . . 1 . Tool/Special 1 | . . . . . . 1 Average Slot Usage (%) 80 | . 94 100 98 96 70 62 Engine 7 | . 9 14 11 11 4 4 Core 2 | . 3 . . . 1 4 Treads 4 | . 22 . . . . . Leg 5 | . . . . . 7 11 Wheel 10 | . 4 28 21 21 11 1 Flight 2 | . . . . . . 6 Device 3 | . . . 6 11 6 . Storage 5 | . 14 14 4 . 1 3 Processor 8 | . 10 14 11 11 4 7 Protection 1 | . . . . . 3 3 Energy Gun 6 | . 6 14 11 11 5 2 Energy Cannon 2 | . 7 . . . . 2 Ballistic Gun 10 | . 12 . 10 12 15 10 Ballistic Cannon 5 | . 1 14 11 11 5 1 Launcher 2 | . . . 11 6 . . Peak Build Rating 43 | 6 9 7 11 12 24 43 Average Rating 15 | 5 7 7 10 10 12 29 On Entrance 6 | . 6 7 7 11 11 2 Naked Turns . | . . . . . . . Heaviest Build 48 | 13 15 14 19 17 24 48 Greatest Support 40 | 40 40 20 20 20 25 36 Greatest Overweight (x) 10 | . . . 1 . 2 10 Average Overweight (x) . | . . . . . . 1 Largest Inventory Capacity 10 | 8 8 8 8 5 10 10 Average Capacity 6 | 7 8 8 6 5 5 7 Most Carried 10 | 6 8 8 8 5 5 10 Average Carried 5 | 5 7 7 5 4 3 5 Final Capacity 10 | 8 8 8 5 5 10 5 Final Carried 8 | 6 6 8 5 5 1 5 Class Distribution -------------------- 44% | Mutant 28% | Gunner 17% | Scavenger-Mutant 5% | Scavenger-Gunner 3% | Scavenger-Tank Dominant Class ---------------- Mutant | -10/Materials Mutant | -10/Mines Gunner | -9/Materials Gunner | -9/Mines Mutant | -8/Materials Scavenger-Mutant | -7/Factory Resources | -11 -10 -10 -9 -9 -8 -7 ----------- Run | Yrd Mat Min Mat Min Mat Fac Matter Collected 1362 | 223 154 30 100 92 255 508 Remotely . | . . . . . . . Salvage Created 1886 | . 441 46 154 107 623 515 Parts 104 | . 24 8 4 14 23 31 Haulers Intercepted . | . . . . . . . Recyclers Shooed 2 | . . . . . 1 1 Parts Field Recycled . | . . . . . . . Retrieved Matter . | . . . . . . . Parts Self-Destructed . | . . . . . . . Prevented . | . . . . . . . Kills | -11 -10 -10 -9 -9 -8 -7 ------- Run | Yrd Mat Min Mat Min Mat Fac Combat Hostiles Destroyed 47 | . 12 3 3 6 12 11 Melee 6 | . . . . . 4 2 Guns 25 | . 5 3 1 5 4 7 Cannons 12 | . 7 . 2 . 1 2 AOE 4 | . . . . 1 3 . Classes Destroyed 12 | . 2 . 2 1 4 3 Worker 1 | . . . . . 1 . Builder 2 | . . . . . 1 1 Tunneler 1 | . . . . . 1 . Recycler 2 | . . . . . 1 1 Operator 1 | . . . . . . 1 Watcher 3 | . . . 1 . 1 1 Swarmer 15 | . 3 3 . 4 1 4 Grunt 22 | . 9 . 1 1 8 3 Duelist 3 | . . . . 1 2 . Sentry 3 | . . . 2 . 1 . Specialist 1 | . . . . . . 1 Programmer 3 | . . . . . . 3 Best Kill Streak 6 | . 3 3 2 3 6 4 Combat Bots Only 4 | . 3 3 1 3 4 4 Max Kills in Single Turn 3 | . 1 1 1 1 3 1 Gunslinging . | . . . . . . . Exploded 3 | . . . . 1 3 . Melee 1 | . . . . . 1 1 Uniques/NPCs Destroyed . | . . . . . . . Combat | -11 -10 -10 -9 -9 -8 -7 -------- Run | Yrd Mat Min Mat Min Mat Fac Hostile Shots Fired 630 | . 97 14 40 34 167 278 Missed 177 | . 28 8 14 8 41 78 Hits 453 | . 69 6 26 26 126 200 Melee 24 | . . . . 3 8 13 Projectile 429 | . 69 6 26 23 118 187 Critical Strikes 14 | . 1 . . 1 4 8 Damage Taken 5799 | . 730 45 284 201 1585 2954 Core 1477 | . 129 24 22 70 523 709 Absorbed by Shields 249 | . . . 79 79 75 16 Core Remaining (%) 54 | 100 . 38 . 77 4 . Volleys Fired 120 | . 31 5 13 14 19 38 Largest 5 | . 2 2 3 4 4 5 Hottest 270 | . 80 70 90 123 130 270 Shots Fired 285 | . 61 10 39 43 56 76 Gun 200 | . 42 5 26 28 45 54 Cannon 78 | . 19 5 13 14 7 20 Launcher 7 | . . . . 1 4 2 Special . | . . . . . . . Kinetic 180 | . 30 5 26 28 41 50 Thermal 91 | . 31 5 13 14 4 24 Explosive 5 | . . . . 1 4 . Electromagnetic 9 | . . . . . 7 2 Robot Hit Streak 12 | . 12 4 9 5 11 5 Robot Miss Streak 5 | . 4 2 2 5 1 5 Penetration Max . | . . . . . . . Secondary Targets 1 | . 1 . . . . . Max Gunslinging Chain 1 | . 1 . . . . . Shots Hit Robots 185 | . 33 3 25 18 53 53 Core Hits 116 | . 17 3 8 9 38 41 Critical Kills . | . . . . . . . Critical Parts Destroyed . | . . . . . . . Critical Strikes 3 | . . . 2 . 1 . Blast 2 | . . . 2 . . . Sever 1 | . . . . . 1 . Melee Attacks 34 | . . . . . 26 8 Impact . | . . . . . . . Slashing 26 | . . . . . 26 . Piercing 8 | . . . . . . 8 Sneak Attacks 3 | . . . . . 3 . Combat Hostiles . | . . . . . . . Follow-up Attacks . | . . . . . . . Damage Inflicted 3795 | . 435 31 287 289 1618 1135 Guns 1566 | . 206 31 151 120 355 703 Cannons 852 | . 226 . 136 85 68 337 Explosions 604 | . . . . 84 508 12 Melee 761 | . . . . . 678 83 Ramming 12 | . 3 . . . 9 . Kinetic 1489 | . 140 . 202 143 286 718 Thermal 912 | . 292 31 85 62 120 322 Explosive 512 | . . . . 84 428 . Electromagnetic 109 | . . . . . 97 12 Impact . | . . . . . . . Slashing 678 | . . . . . 678 . Piercing 83 | . . . . . . 83 Highest Corruption 13 | . . . . . 3 13 Average Corruption 7 | . . . . . 2 7 Corruption Purged . | . . . . . . . Corruption Blocked . | . . . . . . . Effects 32 | . . . . . . 32 Message Errors 8 | . . . . . . 8 Matter Fused 9 | . . . . . . 9 Heat Flow Errors 3 | . . . . . . 3 Data Loss (minor) 7 | . . . . . . 7 Data Loss (major) 1 | . . . . . . 1 Misfires 2 | . . . . . . 2 Weapon Failures 2 | . . . . . . 2 Overload Shots . | . . . . . . . Overflow Damage 48 | . . . . . 48 . Projectiles . | . . . . . . . Explosions 2 | . . . . . 2 . Melee 46 | . . . . . 46 . Knockbacks 8 | . . . . 3 3 2 Impact . | . . . . . . . Kinetic 6 | . . . . 3 2 1 Secondary 2 | . . . . . 1 1 Self-Inflicted Damage 34 | . . . . . 34 . Shots 1 | . . . . . 1 . Rammed 7 | . 1 . . . 6 . Targets Rammed 8 | . 1 . . . 6 1 Kicked 1 | . . . . . . 1 Crushed . | . . . . . . . Highest Temperature 477 | . 173 38 123 96 165 477 Average Temperature 105 | . 77 17 42 33 57 160 Received Heat Transfer 1442 | . 303 . 101 . 591 447 Effects 8 | . . . . . . 8 Shutdowns 4 | . . . . . . 4 Energy Bleed 1 | . . . . . . 1 Interference 2 | . . . . . . 2 Damage (minor) 1 | . . . . . . 1 Siege Activations . | . . . . . . . Martial Activations . | . . . . . . . Shielding Activations . | . . . . . . . Robots Disrupted . | . . . . . . . Combat Hostiles . | . . . . . . . Robots Corrupted . | . . . . . . . Combat Hostiles . | . . . . . . . Parts Fried . | . . . . . . . Impact Corruptions 1 | . . . . . . 1 Robots Melted . | . . . . . . . Combat Hostiles . | . . . . . . . Parts Melted 3 | . 2 . . . 1 . Heat Transferred 1828 | . 631 75 200 150 250 522 Parts Sabotaged . | . . . . . . . Parts Stolen . | . . . . . . . Parts Stripped . | . . . . . . . Power Chain Reactions 1 | . . . . . 1 . Alert | -11 -10 -10 -9 -9 -8 -7 ------- Run | Yrd Mat Min Mat Min Mat Fac Maximum Alert Level . | . . . . . . . Low Security (%) 100 | 100 100 100 100 100 100 100 Level 1 . | . . . . . . . Level 2 . | . . . . . . . Level 3 . | . . . . . . . Level 4 . | . . . . . . . Level 5 . | . . . . . . . High Security . | . . . . . . . Max Security . | . . . . . . . Peak Influence 153 | . 88 75 72 74 153 75 Initial 44 | . . 14 17 16 19 44 Average 26 | . 41 21 26 22 67 14 Influence Increases 1468 | . 307 85 112 213 424 327 Destroy 0b10 Robot/C 980 | . 240 60 60 160 240 220 Destroy 0b10 Robot/NC 50 | . . . 5 . 25 20 Destroy Leader 216 | . 50 10 32 30 52 42 Allied During Kill 24 | . . . . 16 8 . Successful Hack 49 | . 17 . . . 18 14 Disable Machine 75 | . . 15 15 . 15 30 Destroy Structure 29 | . . . . 7 21 1 Lose Combat Pursuer 45 | . . . . . 45 . Influence Decreases 1405 | . 270 77 115 205 377 361 Entered New Map 161 | . . 23 28 26 31 53 Time Decay 932 | . 230 54 77 159 165 247 Lost Part 292 | . 40 . 10 20 161 61 Lost Ally 20 | . . . . . 20 . Squads Dispatched 11 | . 2 . 2 . 1 6 Investigation 3 | . 1 . 1 . . 1 Extermination 2 | . . . . . . 2 Reinforcement 6 | . 1 . 1 . 1 3 Assault . | . . . . . . . Garrison . | . . . . . . . Intercept . | . . . . . . . Searches Triggered . | . . . . . . . Construction Impeded . | . . . . . . . Haulers Reinforced . | . . . . . . . Active Scanning Responses . | . . . . . . . Cargo Convoy Interrupts . | . . . . . . . Stealth | -11 -10 -10 -9 -9 -8 -7 --------- Run | Yrd Mat Min Mat Min Mat Fac Distress Signals 4 | . 2 . 1 . 1 . Communications Jammed . | . . . . . . . Distress Signals . | . . . . . . . Times Spotted 87 | . 19 3 13 9 21 22 Peak Tracking Total 9 | . 6 3 9 4 8 5 Tactical Retreats 3 | . . . . . 3 . Traps | -11 -10 -10 -9 -9 -8 -7 ------- Run | Yrd Mat Min Mat Min Mat Fac Traps Triggered . | . . . . . . . Indirectly . | . . . . . . . Trap Hack Attempts . | . . . . . . . Triggered . | . . . . . . . Disarmed . | . . . . . . . Reprogrammed . | . . . . . . . Reused . | . . . . . . . Traps Extracted . | . . . . . . . Installed . | . . . . . . . Triggered . | . . . . . . . Most Traps Carried 1 | . . 1 1 . . . Machines | -11 -10 -10 -9 -9 -8 -7 ---------- Run | Yrd Mat Min Mat Min Mat Fac Machines Disabled 6 | . . 1 2 . 1 2 Max in Single Turn 1 | . . 1 1 . 1 1 Machines Repaired . | . . . . . . . Machines Dismantled . | . . . . . . . Machines Sabotaged . | . . . . . . . Overloaded Fab Kills . | . . . . . . . Hacking | -11 -10 -10 -9 -9 -8 -7 --------- Run | Yrd Mat Min Mat Min Mat Fac Machines Accessed 11 | . 2 . 1 . 3 5 Terminals 10 | . 2 . 1 . 3 4 Fabricators . | . . . . . . . Repair Stations 1 | . . . . . . 1 Recycling Units . | . . . . . . . Scanalyzers . | . . . . . . . Garrison Access . | . . . . . . . Total Hacks 25 | . 7 . 3 . 5 10 Successful 15 | . 4 . 1 . 5 5 Failed 10 | . 3 . 2 . . 5 Catastrophic 3 | . 2 . 1 . . . Database Lockouts . | . . . . . . . Manual . | . . . . . . . Terminals 24 | . 7 . 3 . 5 9 Fabricators . | . . . . . . . Repair Stations 1 | . . . . . . 1 Recycling Units . | . . . . . . . Scanalyzers . | . . . . . . . Garrison Access . | . . . . . . . Terminal Hacks 14 | . 4 . 1 . 5 4 Record 5 | . . . . . 4 1 Robot Analysis 1 | . 1 . . . . . Open DSF 1 | . . . . . . 1 Alert Level 2 | . . . 1 . . 1 Dispatch Records 1 | . 1 . . . . . Security Status 1 | . . . . . . 1 Transport Status 1 | . 1 . . . . . Recall Reinforcements 2 | . 1 . . . 1 . Fabricator Hacks . | . . . . . . . Repair Station Hacks 1 | . . . . . . 1 Scan Component 1 | . . . . . . 1 Recycling Unit Hacks . | . . . . . . . Scanalyzer . | . . . . . . . Garrison Access Hacks . | . . . . . . . Unauthorized Hacks . | . . . . . . . Terminals . | . . . . . . . Fabricators . | . . . . . . . Repair Stations . | . . . . . . . Recycling Units . | . . . . . . . Scanalyzers . | . . . . . . . Garrison Access . | . . . . . . . Data Cores Recovered 1 | . . . . . . 1 Used . | . . . . . . . Hacking Detections 8 | . 1 . 1 . 3 3 Full Trace Events 3 | . 1 . 1 . . 1 Feedback Events . | . . . . . . . Feedback Blocked . | . . . . . . . Robot Schematics Acquired . | . . . . . . . Robots Built . | . . . . . . . Authchips . | . . . . . . . Time . | . . . . . . . Total Robot Build Rating . | . . . . . . . Part Schematics Acquired . | . . . . . . . Parts Built . | . . . . . . . Authchips . | . . . . . . . Time . | . . . . . . . Total Part Build Rating . | . . . . . . . Parts Repaired . | . . . . . . . Time . | . . . . . . . Parts Recycled . | . . . . . . . Recycled Matter . | . . . . . . . Retrieved Matter . | . . . . . . . Retrieved Components . | . . . . . . . Parts Scanalyzed . | . . . . . . . Part Schematics Acquired . | . . . . . . . Parts Damaged . | . . . . . . . Bothacking | -11 -10 -10 -9 -9 -8 -7 ------------ Run | Yrd Mat Min Mat Min Mat Fac Used RIF Installer . | . . . . . . . Robots Hacked . | . . . . . . . Non-combat . | . . . . . . . Combat . | . . . . . . . Robot Hacks Applied . | . . . . . . . Relay Couplers Released . | . . . . . . . Fabnet Peak Effective % . | . . . . . . . Robots Rewired . | . . . . . . . Allies Hacked . | . . . . . . . Hacks Repelled . | . . . . . . . Allies | -11 -10 -10 -9 -9 -8 -7 -------- Run | Yrd Mat Min Mat Min Mat Fac Total Allies 2 | . . . . 2 . . Largest Group 2 | . . . . 2 2 . Highest-Rated Group 45 | . . . . 45 45 . Highest-Rated Ally 31 | . . . . 31 31 . Total Orders . | . . . . . . . Ally Attacks 10 | . . . . 6 4 . Total Damage 108 | . . . . 44 64 . Kills 2 | . . . . 2 . . Allies Corrupted . | . . . . . . . Allies Melted . | . . . . . . . Intel | -11 -10 -10 -9 -9 -8 -7 ------- Run | Yrd Mat Min Mat Min Mat Fac Active Infowar (turns) 2 | . . . . . 2 . Sensors 2 | . . . . . 2 . Robot Analysis Total 1 | . 1 . . . . . Derelict Logs Recovered 1 | . . . . 1 . . Drone Launches . | . . . . . . . Drone Recoveries . | . . . . . . . Exploration | -11 -10 -10 -9 -9 -8 -7 ------------- Run | Yrd Mat Min Mat Min Mat Fac Turns Passed 3555 | 413 587 253 194 535 436 1137 Spaces Moved 2448 | 148 352 293 175 539 267 674 Core 32 | 7 . . . . 12 13 Treads 374 | 141 233 . . . . . Legs 363 | . . . . . 39 324 Wheels 1500 | . 119 293 175 539 216 158 Hover . | . . . . . . . Flight 179 | . . . . . . 179 Fastest Speed 50 | 50 80 80 80 80 50 80 Average Speed 110 | 154 132 80 80 80 99 138 Slowest Speed 550 | 160 160 80 95 80 190 550 Overloaded Moves . | . . . . . . . Propulsion Burnouts . | . . . . . . . Robots Hopped . | . . . . . . . Potential Cave-ins . | . . . . . . . Cave-ins Triggered . | . . . . . . . Exploration Rate (%) 32 | 11 38 53 21 69 20 16 Regions Visited 6 Branch Regions 2 Pre-discovered Areas 1 | . . . . 1 . . Known Exits Taken . | . . . . . . . Unknown Exits Taken 6 | 1 1 1 1 1 1 . Scrap Searched 1 | . . . . 1 . . Spaces Dug . | . . . . . . . Terrain Destroyed 29 | . . . . 7 21 1 Melee . | . . . . . . . Projectile 1 | . . . . . . 1 AOE 28 | . . . . 7 21 . Terrain Rammed . | . . . . . . . Walls Destroyed . | . . . . . . . Machines Disabled . | . . . . . . . Actions | -11 -10 -10 -9 -9 -8 -7 --------- Run | Yrd Mat Min Mat Min Mat Fac Total 3026 | 332 413 301 205 612 356 807 Wait 246 | 167 8 2 . 51 11 7 Move 2442 | 147 351 292 174 538 266 674 Hop . | . . . . . . . Pick Up 75 | 12 8 2 7 3 9 34 Fast Attach 9 | . 1 . . . 2 6 Attach 54 | 6 4 . 3 2 13 26 Detach 1 | . . . . . 1 . Swap 15 | . 4 . 1 2 2 6 Drop 22 | . 5 . 7 2 1 7 Fire 120 | . 31 5 13 14 19 38 Melee 34 | . . . . . 26 8 Ram 6 | . . . . . 6 . Kick 1 | . . . . . . 1 Crush 1 | . 1 . . . . . Escape Stasis . | . . . . . . . Rewire . | . . . . . . . Trap . | . . . . . . . Miscellaneous . | . . . . . . . Route ------- -11/Scrapyard -10/Materials -10/Mines (discovered 2 exits: *Mat x2) -9/Materials (discovered 2 exits: [*Min x2]) -9/Mines -8/Materials -7/Factory History --------- Turn | Location | Event 6 | -11/Scrapyard | Discovered new exit (range 15) 414 | -11/Scrapyard | Entered Materials 415 | -10/Materials | Build established: Mutant 854 | -10/Materials | Discovered new exit (range 16) 899 | -10/Materials | Core integrity fell below 50% 921 | -10/Materials | Lost 3 parts (1p1n1w) 1001 | -10/Materials | Entered Mines 1037 | -10/Mines | Received a Rocket Launcher from a helpful Derelict 1074 | -10/Mines | Found a hidden stash of uninstalled traps 1208 | -10/Mines | Discovered new exit (range 9) 1241 | -10/Mines | Discovered new exit (range 15) 1248 | -10/Mines | Assembled infested the area 1254 | -10/Mines | Entered Materials 1254 | -9/Materials | Evolved 2 slots: Weapon x2 1425 | -9/Materials | Discovered new exit (range 13) 1427 | -9/Materials | Discovered new exit (range 6) 1448 | -9/Materials | Entered Mines 1449 | -9/Mines | Learned location of Storage (-8) 1457 | -9/Mines | Discovered new exit (range 16) 1457 | -9/Mines | Learned Materials stockpile data 1541 | -9/Mines | Build established: Gunner 1664 | -9/Mines | Found a damaged Exp. Sensor Array with a note attached 1667 | -9/Mines | Found Prototype Device 1983 | -9/Mines | Entered Materials 1983 | -8/Materials | Accompanied by 2 allies 1983 | -8/Materials | Evolved 2 slots: Propulsion x1, Utility x1 1989 | -8/Materials | Led the pair of lost Derelicts to an unsafe place 2261 | -8/Materials | Lost 10 parts (1p2n3u4w) 2337 | -8/Materials | Identified Exp. Sensor Array 2376 | -8/Materials | Core integrity fell below 50% 2397 | -8/Materials | Core integrity fell below 20% 2410 | -8/Materials | Discovered new exit (range 10) 2418 | -8/Materials | Lost 8 parts (1p3n1u3w) 2419 | -8/Materials | Entered Factory 2419 | -7/Factory | Evolved 2 slots: Power x1, Weapon x1 2927 | -7/Factory | Core integrity fell below 50% 2948 | -7/Factory | System corruption reached 10% 2982 | -7/Factory | Core integrity fell below 20% 2989 | -7/Factory | Lost 17 parts (2p6n3u6w) 3264 | -7/Factory | Build established: Scavenger-Mutant 3556 | -7/Factory | Destroyed by H-55 Commando with Gauss Rifle Last Messages --------------- Acquired 50 matter. R-06 Scavenger collects Corrupted VTOL Module. S-27 Virus destroyed. R-06 Scavenger collects Lgt. Nuclear Core. R-06 Scavenger collects Wheel. Acquired 23 matter. Hrd. Medium Armor Plating destroyed. S-27 Virus destroyed. System corrupted: Matter fused (-10). Acquired Autogun. Acquired 27 matter. Acquired Autogun. Acquired Lgt. Ion Engine. Acquired 3 matter. Acquired 9 matter. Acquired Power Shielding. R-06 Scavenger collects VTOL Module. TMRS3U&8K#BCTDZP4KKHTAHRCL6V>4 R-06 Scavenger collects VTOL Module. Penetrated by Slug. Map ----- +----------------------------------------------------+ | ?????????????????????????????????????????????????? | | ?????????????????????????????????????????????????? | | ?????????????????????????????????????????????????? | | ?????????????????????????????????????????????????? | | ?????????????????????????????????????????????????? | | ?????????????????????????????????????????????????? | | ?????????????????????????????????????????????????? | | ?????????????????????????????????????????????????? | | ?????????????????????????????????????????????????? | | ???????? ??????????????????????????????????????? | | ???????# #?????????????????????????????????????? | | ???????# #?????????????????????????????????????? | | ???????# #???????????###???????????????????????? | | ???????# #?????????###"######??????????????????? | | ???????# #?????????# ! #??????????????????? | | ???????# #?????????# #??????????????????? | | ???????# #?????????# #??????????????????? | | #??????# #?????????# #??????????????????? | | #??????# #?????????# #??????????????????? | | #??????# #?????????# !! #??????????????????? | | #??????# #?????????# ! #??????????????????? | | #????### ######????# #??????????????????? | | #????# #T ###### #??????????????????? | | #????# h ##+############ #????????????? | | ###### r u #????????????? | | + T @ #????????????? | | ###### #????????????? | | #????# """ """" #????????????? | | #????# ## """ """" #????????????? | | #????########## """ """" k #????????????? | | #?????????????# "" """" #????????????? | | ??????????????# "" """" #????????????? | | ??????????????# """? +????????????? | | ??????????????# ?? #????????????? | | #############?# ?? +????????????? | | ?? ########????????????? | | ?? #???????????????????? | | ??? #???????????????????? | | ???? #???????????????????? | | ?? ?? ?????? ???????????????????? | | ????????????????????????????????????? | | ????????????????????????????????????? | | ?????????????????????????????????????? | | ?????????????????????????????????????? | | ##########?????????????????????????????????????? | | #??????????????????????????????????????????????? | | #??????????????????????????????????????????????? | | #??????????????????????????????????????????????? | | #??????????????????????????????????????????????? | | #??????????????????????????????????????????????? | +----------------------------------------------------+ Best States ------------- Heat Dissipation 41 Coolant Potential 65 Energy Generation 26 Energy Capacity 430 Matter Stores 300 Matter Capacity 300 Sight Range 16 Terrain Scan Density 10 Additional Mass Support 9 Armor Coverage 225 Power Shielding 33 Evasion (%) 57 Targeting Accuracy 5 Core Analysis 9 Recoil Reduction 2 Item Schematics ----------------- None Robot Schematics ------------------ None Fabricated ------------ Nothing Repaired ---------- Nothing Alien Tech Used ----------------- None Achievements -------------- Close Call More Dakka Please Challenges ------------ None Game ------ Seed FireCloakingCanceller Manual? 0 Play Time 00:51:59 Cumulative 1.6 hours Start 2025.06.28 @ 15:51:47 End 2025.06.28 @ 21:58:12 Sessions 3 Manual Loads 0 Difficulty Rogue Special Mode None Game No. 4 Rogue 4 Adventurer 0 Explorer 0 Win Type - Total 0 Types 0/0/0/0/0/0/0/0/0/0 Lore% 1 Gallery% 7 Achievement% 5 Wizard Run 0 Options --------- Layout 1 ASCII 0 Keyboard 0 Movement Arrows Keybinds 0 Fullscreen 1 Font 24/Smallcaps Map View 50x35 Zoom Use 0% Tactical HUD 0 Map Filters NONE Filters NONE Steam 1 RUN: 9719015e-f678-42a4-89a7-2c23a9b2b650